[Event "Titled Tuesday Blitz April 4 Early 2023"]
[White "Garcia Almaguer, Juan Manuel"]
[Black "Blokhin, Sofia"]
[WhiteFideId "5110491"]
[BlackFideId "4508190"]
[WhiteElo "2117"]
[BlackElo "1994"]
[Result "0-1"]
[Round "08"]
[TimeControl "180+2"]
[Date "2023.04.04"]
[WhiteClock "0:00:08"]
[BlackClock "0:00:10"]

1. e4 {[%clk 0:03:00]}  c5 {[%clk 0:02:59]} 2. Nc3 {[%clk 0:02:59]}  e6 {[%clk 0:02:57]} 3. d4 {[%clk 0:02:58]}  cxd4 {[%clk 0:02:56]} 4. Qxd4 {[%clk 0:02:59]}  Nc6 {[%clk 0:02:56]} 5. Qe3 {[%clk 0:02:59]}  g6 {[%clk 0:02:54]} 6. Bd2 {[%clk 0:02:56]}  Bg7 {[%clk 0:02:54]} 7. O-O-O {[%clk 0:02:53]}  a6 {[%clk 0:02:52]} 8. f4 {[%clk 0:02:50]}  Nge7 {[%clk 0:02:48]} 9. Nf3 {[%clk 0:02:44]}  O-O {[%clk 0:02:48]} 10. e5 {[%clk 0:02:27]}  d5 {[%clk 0:02:40]} 11. g4 {[%clk 0:02:13]}  d4 {[%clk 0:02:36]} 12. Qf2 {[%clk 0:02:09]}  dxc3 {[%clk 0:02:34]} 13. Bxc3 {[%clk 0:02:10]}  Qc7 {[%clk 0:02:29]} 14. h4 {[%clk 0:01:56]}  Nd5 {[%clk 0:02:28]} 15. Bd2 {[%clk 0:01:56]}  Ncb4 {[%clk 0:02:24]} 16. Bxb4 {[%clk 0:01:53]}  Nxb4 {[%clk 0:02:23]} 17. a3 {[%clk 0:01:54]}  Nd5 {[%clk 0:02:20]} 18. Ng5 {[%clk 0:01:50]}  Bd7 {[%clk 0:02:11]} 19. Bd3 {[%clk 0:01:47]}  Rac8 {[%clk 0:02:06]} 20. h5 {[%clk 0:01:45]}  Bb5 {[%clk 0:02:00]} 21. hxg6 {[%clk 0:01:39]}  Bxd3 {[%clk 0:01:57]} 22. gxh7+ {[%clk 0:01:10]}  Kh8 {[%clk 0:01:52]} 23. Rxd3 {[%clk 0:01:08]}  Nxf4 {[%clk 0:01:44]} 24. Rc3 {[%clk 0:01:02]}  Qxe5 {[%clk 0:01:28]} 25. Nxf7+ {[%clk 0:00:20]}  Rxf7 {[%clk 0:01:27]} 26. Rxc8+ {[%clk 0:00:20]}  Rf8 {[%clk 0:01:24]} 27. Rxf8+ {[%clk 0:00:20]}  Bxf8 {[%clk 0:01:24]} 28. Re1 {[%clk 0:00:18]}  Qg5 {[%clk 0:01:16]} 29. Kb1 {[%clk 0:00:18]}  Kxh7 {[%clk 0:01:13]} 30. Qd4 {[%clk 0:00:17]}  Bg7 {[%clk 0:01:07]} 31. Qe4+ {[%clk 0:00:17]}  Kg8 {[%clk 0:01:06]} 32. Qxb7 {[%clk 0:00:17]}  Qf6 {[%clk 0:00:48]} 33. Qc8+ {[%clk 0:00:16]}  Kf7 {[%clk 0:00:45]} 34. Qd7+ {[%clk 0:00:14]}  Kg6 {[%clk 0:00:44]} 35. Qe8+ {[%clk 0:00:14]}  Kg5 {[%clk 0:00:41]} 36. c3 {[%clk 0:00:14]}  Qg6+ {[%clk 0:00:38]} 37. Qxg6+ {[%clk 0:00:13]}  Kxg6 {[%clk 0:00:38]} 38. Re4 {[%clk 0:00:13]}  e5 {[%clk 0:00:36]} 39. Ra4 {[%clk 0:00:13]}  Kg5 {[%clk 0:00:34]} 40. Rxa6 {[%clk 0:00:14]}  Kxg4 {[%clk 0:00:34]} 41. Ra7 {[%clk 0:00:14]}  Bf6 {[%clk 0:00:33]} 42. a4 {[%clk 0:00:15]}  e4 {[%clk 0:00:33]} 43. Kc2 {[%clk 0:00:14]}  e3 {[%clk 0:00:32]} 44. Ra8 {[%clk 0:00:13]}  e2 {[%clk 0:00:31]} 45. Re8 {[%clk 0:00:13]}  Kf3 {[%clk 0:00:28]} 46. Kd2 {[%clk 0:00:13]}  Kf2 {[%clk 0:00:27]} 47. a5 {[%clk 0:00:12]}  Bg5 {[%clk 0:00:25]} 48. a6 {[%clk 0:00:12]}  Nd5+ {[%clk 0:00:19]} 49. Kc2 {[%clk 0:00:12]}  Ne3+ {[%clk 0:00:17]} 50. Rxe3 {[%clk 0:00:10]}  Bxe3 {[%clk 0:00:11]} 51. a7 {[%clk 0:00:08]}  Bxa7 {[%clk 0:00:10]} 0-1


[Site "https://www.chess.com"]

[Event "Titled Tuesday Blitz April 4 Early 2023"]
[White "dDobravcan"]
[Black "Ward, Ieuan C"]
[BlackFideId "406627"]
[WhiteElo "2140"]
[BlackElo "2293"]
[Result "1-0"]
[Round "08"]
[TimeControl "180+2"]
[Date "2023.04.04"]
[WhiteClock "0:00:23"]
[BlackClock "0:00:07"]

1. e4 {[%clk 0:03:00]}  e5 {[%clk 0:02:58]} 2. Nf3 {[%clk 0:02:59]}  Nc6 {[%clk 0:02:58]} 3. Bb5 {[%clk 0:02:59]}  a6 {[%clk 0:02:54]} 4. Bxc6 {[%clk 0:02:59]}  dxc6 {[%clk 0:02:53]} 5. O-O {[%clk 0:03:00]}  Bd6 {[%clk 0:02:49]} 6. d4 {[%clk 0:02:58]}  f6 {[%clk 0:02:43]} 7. dxe5 {[%clk 0:02:58]}  fxe5 {[%clk 0:02:43]} 8. Nxe5 {[%clk 0:02:57]}  Nf6 {[%clk 0:02:38]} 9. Nd3 {[%clk 0:02:52]}  Be7 {[%clk 0:01:40]} 10. e5 {[%clk 0:02:44]}  Nd5 {[%clk 0:01:39]} 11. Qh5+ {[%clk 0:02:28]}  g6 {[%clk 0:01:39]} 12. Qh6 {[%clk 0:02:26]}  Bf8 {[%clk 0:01:36]} 13. Qg5 {[%clk 0:02:20]}  Be7 {[%clk 0:01:34]} 14. Qg3 {[%clk 0:02:17]}  O-O {[%clk 0:01:31]} 15. f4 {[%clk 0:02:01]}  Bf5 {[%clk 0:01:16]} 16. Kh1 {[%clk 0:01:56]}  c5 {[%clk 0:01:02]} 17. Nd2 {[%clk 0:01:53]}  b5 {[%clk 0:01:01]} 18. c4 {[%clk 0:01:44]}  Nb6 {[%clk 0:00:57]} 19. Nf2 {[%clk 0:01:31]}  bxc4 {[%clk 0:00:46]} 20. Nde4 {[%clk 0:01:26]}  Nd5 {[%clk 0:00:38]} 21. Qf3 {[%clk 0:01:15]}  c6 {[%clk 0:00:33]} 22. g4 {[%clk 0:01:11]}  Bd7 {[%clk 0:00:30]} 23. Qg3 {[%clk 0:01:09]}  Rb8 {[%clk 0:00:25]} 24. f5 {[%clk 0:01:03]}  Bh4 {[%clk 0:00:24]} 25. Qg2 {[%clk 0:01:01]}  gxf5 {[%clk 0:00:20]} 26. gxf5+ {[%clk 0:01:00]}  Kh8 {[%clk 0:00:21]} 27. e6 {[%clk 0:00:51]}  Rg8 {[%clk 0:00:20]} 28. Qh3 {[%clk 0:00:47]}  Be8 {[%clk 0:00:19]} 29. Ng4 {[%clk 0:00:36]}  Bh5 {[%clk 0:00:13]} 30. Ne5 {[%clk 0:00:31]}  Rb6 {[%clk 0:00:08]} 31. Nxc5 {[%clk 0:00:27]}  Qf6 {[%clk 0:00:08]} 32. Ncd7 {[%clk 0:00:25]}  Qg5 {[%clk 0:00:07]} 33. Bxg5 {[%clk 0:00:23]} 1-0


[Site "https://www.chess.com"]

[Event "Titled Tuesday Blitz April 4 Early 2023"]
[White "Lohani, Sujana"]
[Black "morozcoma"]
[WhiteFideId "12311987"]
[WhiteElo "1718"]
[BlackElo "2279"]
[Result "0-1"]
[Round "08"]
[TimeControl "180+2"]
[Date "2023.04.04"]
[WhiteClock "0:00:02"]
[BlackClock "0:00:19"]

1. d4 {[%clk 0:03:00]}  d5 {[%clk 0:02:59]} 2. Nf3 {[%clk 0:03:01]}  Nf6 {[%clk 0:02:58]} 3. c4 {[%clk 0:03:02]}  dxc4 {[%clk 0:02:58]} 4. e3 {[%clk 0:03:01]}  Bg4 {[%clk 0:02:50]} 5. Bxc4 {[%clk 0:03:00]}  e6 {[%clk 0:02:50]} 6. O-O {[%clk 0:02:59]}  Bd6 {[%clk 0:02:51]} 7. Nbd2 {[%clk 0:02:58]}  Nc6 {[%clk 0:02:51]} 8. Qa4 {[%clk 0:02:56]}  O-O {[%clk 0:02:50]} 9. e4 {[%clk 0:02:46]}  e5 {[%clk 0:02:40]} 10. d5 {[%clk 0:02:37]}  Ne7 {[%clk 0:02:38]} 11. Qc2 {[%clk 0:02:34]}  Ng6 {[%clk 0:02:37]} 12. h3 {[%clk 0:02:22]}  Bd7 {[%clk 0:02:31]} 13. a3 {[%clk 0:02:18]}  Nh5 {[%clk 0:02:28]} 14. b4 {[%clk 0:01:48]}  Qf6 {[%clk 0:01:57]} 15. Nb3 {[%clk 0:01:41]}  Bxh3 {[%clk 0:01:52]} 16. Bg5 {[%clk 0:01:38]}  Bxg2 {[%clk 0:01:38]} 17. Bxf6 {[%clk 0:01:36]}  Bxf3 {[%clk 0:01:36]} 18. Bg5 {[%clk 0:01:27]}  h6 {[%clk 0:01:33]} 19. Be3 {[%clk 0:01:27]}  Ngf4 {[%clk 0:01:26]} 20. Nd2 {[%clk 0:01:17]}  Bg4 {[%clk 0:01:19]} 21. f3 {[%clk 0:01:09]}  Bd7 {[%clk 0:01:15]} 22. Bxf4 {[%clk 0:01:01]}  Nxf4 {[%clk 0:01:14]} 23. Kh2 {[%clk 0:00:57]}  f5 {[%clk 0:01:14]} 24. Rg1 {[%clk 0:00:51]}  g5 {[%clk 0:01:11]} 25. Nf1 {[%clk 0:00:49]}  fxe4 {[%clk 0:00:56]} 26. fxe4 {[%clk 0:00:48]}  Ng6 {[%clk 0:00:51]} 27. Ra2 {[%clk 0:00:43]}  Nh4 {[%clk 0:00:50]} 28. Be2 {[%clk 0:00:21]}  Rf2+ {[%clk 0:00:44]} 29. Kh1 {[%clk 0:00:20]}  Raf8 {[%clk 0:00:39]} 30. Ng3 {[%clk 0:00:19]}  Nf3 {[%clk 0:00:35]} 31. Rg2 {[%clk 0:00:15]}  Rxg2 {[%clk 0:00:35]} 32. Kxg2 {[%clk 0:00:15]}  Ne1+ {[%clk 0:00:35]} 33. Kh2 {[%clk 0:00:12]}  Nxc2 {[%clk 0:00:36]} 34. Rxc2 {[%clk 0:00:12]}  Rf4 {[%clk 0:00:29]} 35. Kg2 {[%clk 0:00:11]}  Bg4 {[%clk 0:00:25]} 36. Bd3 {[%clk 0:00:10]}  Bf3+ {[%clk 0:00:24]} 37. Kh2 {[%clk 0:00:09]}  h5 {[%clk 0:00:23]} 38. Nf5 {[%clk 0:00:07]}  Bxe4 {[%clk 0:00:20]} 39. Bxe4 {[%clk 0:00:07]}  Rxe4 {[%clk 0:00:21]} 40. Rg2 {[%clk 0:00:04]}  g4 {[%clk 0:00:18]} 41. Kg3 {[%clk 0:00:04]}  Rf4 {[%clk 0:00:18]} 42. Nh4 {[%clk 0:00:03]}  e4 {[%clk 0:00:18]} 43. Ng6 {[%clk 0:00:03]}  Rf6+ {[%clk 0:00:18]} 44. Kh4 {[%clk 0:00:03]}  Rxg6 {[%clk 0:00:18]} 45. Kxh5 {[%clk 0:00:04]}  Rg7 {[%clk 0:00:18]} 46. Re2 {[%clk 0:00:03]}  g3 {[%clk 0:00:18]} 47. Rg2 {[%clk 0:00:03]}  e3 {[%clk 0:00:18]} 48. Kh4 {[%clk 0:00:02]}  e2 {[%clk 0:00:18]} 49. Rxe2 {[%clk 0:00:02]}  g2 {[%clk 0:00:19]} 0-1


[Site "https://www.chess.com"]

[Event "Titled Tuesday Blitz April 4 Early 2023"]
[White "Legenia, Artem"]
[Black "Maluco_do_Natal_00"]
[WhiteFideId "14136945"]
[WhiteElo "1992"]
[BlackElo "1995"]
[Result "0-1"]
[Round "08"]
[TimeControl "180+2"]
[Date "2023.04.04"]
[WhiteClock "0:01:11"]
[BlackClock "0:00:02"]

1. e4 {[%clk 0:03:00]}  c5 {[%clk 0:02:59]} 2. Nf3 {[%clk 0:03:00]}  Nc6 {[%clk 0:02:59]} 3. c3 {[%clk 0:03:00]}  d5 {[%clk 0:02:59]} 4. exd5 {[%clk 0:02:58]}  Qxd5 {[%clk 0:03:00]} 5. d4 {[%clk 0:02:59]}  Bg4 {[%clk 0:02:59]} 6. Be2 {[%clk 0:02:59]}  cxd4 {[%clk 0:02:53]} 7. cxd4 {[%clk 0:02:59]}  e6 {[%clk 0:02:53]} 8. O-O {[%clk 0:02:57]}  Nf6 {[%clk 0:02:52]} 9. Nc3 {[%clk 0:02:57]}  Qd8 {[%clk 0:02:50]} 10. h3 {[%clk 0:02:57]}  Bh5 {[%clk 0:02:49]} 11. Be3 {[%clk 0:02:55]}  Be7 {[%clk 0:02:46]} 12. Qa4 {[%clk 0:02:55]}  O-O {[%clk 0:02:43]} 13. Rfd1 {[%clk 0:02:55]}  Nd5 {[%clk 0:02:14]} 14. Rac1 {[%clk 0:02:54]}  a6 {[%clk 0:02:04]} 15. Ne4 {[%clk 0:02:49]}  b5 {[%clk 0:01:41]} 16. Qc2 {[%clk 0:02:37]}  Bg6 {[%clk 0:01:35]} 17. Qxc6 {[%clk 0:02:35]}  Bxe4 {[%clk 0:01:34]} 18. Nd2 {[%clk 0:02:30]}  Nxe3 {[%clk 0:01:27]} 19. Qxe4 {[%clk 0:02:25]}  Nxd1 {[%clk 0:01:24]} 20. Rxd1 {[%clk 0:02:24]}  Rc8 {[%clk 0:01:19]} 21. Bd3 {[%clk 0:02:24]}  g6 {[%clk 0:01:16]} 22. Nf3 {[%clk 0:02:22]}  Bf6 {[%clk 0:01:10]} 23. h4 {[%clk 0:02:22]}  Qd5 {[%clk 0:01:08]} 24. Qg4 {[%clk 0:02:21]}  h5 {[%clk 0:01:01]} 25. Qg3 {[%clk 0:02:21]}  Kg7 {[%clk 0:00:58]} 26. Bb1 {[%clk 0:02:15]}  Rfd8 {[%clk 0:00:45]} 27. Re1 {[%clk 0:02:15]}  Qd6 {[%clk 0:00:24]} 28. Qh3 {[%clk 0:02:10]}  Qf4 {[%clk 0:00:19]} 29. Bd3 {[%clk 0:01:59]}  Rc1 {[%clk 0:00:17]} 30. Rxc1 {[%clk 0:01:59]}  Qxc1+ {[%clk 0:00:17]} 31. Kh2 {[%clk 0:02:00]}  Bxd4 {[%clk 0:00:15]} 32. Qg3 {[%clk 0:01:56]}  Bf6 {[%clk 0:00:12]} 33. Ne5 {[%clk 0:01:55]}  Bxe5 {[%clk 0:00:10]} 34. Qxe5+ {[%clk 0:01:55]}  Kg8 {[%clk 0:00:10]} 35. Be4 {[%clk 0:01:51]}  Qd2 {[%clk 0:00:09]} 36. Kg1 {[%clk 0:01:47]}  Qd6 {[%clk 0:00:09]} 37. Qc3 {[%clk 0:01:47]}  Qd1+ {[%clk 0:00:09]} 38. Kh2 {[%clk 0:01:44]}  Qd4 {[%clk 0:00:09]} 39. Qf3 {[%clk 0:01:44]}  Qe5+ {[%clk 0:00:09]} 40. g3 {[%clk 0:01:43]}  Rd2 {[%clk 0:00:08]} 41. Kg2 {[%clk 0:01:42]}  Qxb2 {[%clk 0:00:06]} 42. Bb7 {[%clk 0:01:40]}  a5 {[%clk 0:00:06]} 43. Qf4 {[%clk 0:01:35]}  Kg7 {[%clk 0:00:05]} 44. Kg1 {[%clk 0:01:33]}  Rd1+ {[%clk 0:00:05]} 45. Kg2 {[%clk 0:01:33]}  Qd4 {[%clk 0:00:05]} 46. Qf3 {[%clk 0:01:32]}  Rd2 {[%clk 0:00:04]} 47. Ba8 {[%clk 0:01:31]}  Rxa2 {[%clk 0:00:04]} 48. Be4 {[%clk 0:01:30]}  b4 {[%clk 0:00:04]} 49. Bb7 {[%clk 0:01:31]}  Ra3 {[%clk 0:00:04]} 50. Qe2 {[%clk 0:01:28]}  Rd3 {[%clk 0:00:03]} 51. Be4 {[%clk 0:01:26]}  Rd2 {[%clk 0:00:03]} 52. Qf3 {[%clk 0:01:26]}  b3 {[%clk 0:00:04]} 53. Bb1 {[%clk 0:01:25]}  b2 {[%clk 0:00:04]} 54. Be4 {[%clk 0:01:25]}  a4 {[%clk 0:00:04]} 55. Bb1 {[%clk 0:01:26]}  a3 {[%clk 0:00:04]} 56. Ba2 {[%clk 0:01:26]}  Rd1 {[%clk 0:00:03]} 57. Qb3 {[%clk 0:01:24]}  Ra1 {[%clk 0:00:03]} 58. Kf3 {[%clk 0:01:18]}  Rd1 {[%clk 0:00:03]} 59. Kg2 {[%clk 0:01:17]}  Rd3 {[%clk 0:00:03]} 60. Qb7 {[%clk 0:01:16]}  Rd2 {[%clk 0:00:03]} 61. Qf3 {[%clk 0:01:14]}  Qd3 {[%clk 0:00:03]} 62. Qf4 {[%clk 0:01:12]}  b1=Q {[%clk 0:00:01]} 63. Bxb1 {[%clk 0:01:11]}  Qxb1 {[%clk 0:00:02]} 64. Qe5+ {[%clk 0:01:12]}  Kh7 {[%clk 0:00:01]} 65. Qf6 {[%clk 0:01:12]}  Qf5 {[%clk 0:00:01]} 66. Qe7 {[%clk 0:01:12]}  Qxf2+ {[%clk 0:00:01]} 67. Kh3 {[%clk 0:01:11]}  Qg2# {[%clk 0:00:02]} 0-1


[Site "https://www.chess.com"]

[Event "Titled Tuesday Blitz April 4 Early 2023"]
[White "K2JW"]
[Black "Svicevic, Rastko"]
[BlackFideId "916315"]
[WhiteElo "2344"]
[BlackElo "2071"]
[Result "0-1"]
[Round "08"]
[TimeControl "180+2"]
[Date "2023.04.04"]
[WhiteClock "0:00:37"]
[BlackClock "0:00:08"]

1. d4 {[%clk 0:03:00]}  d5 {[%clk 0:02:57]} 2. c4 {[%clk 0:03:00]}  c6 {[%clk 0:02:57]} 3. Nc3 {[%clk 0:02:59]}  e6 {[%clk 0:02:57]} 4. e3 {[%clk 0:02:59]}  f5 {[%clk 0:02:57]} 5. Nf3 {[%clk 0:02:58]}  Nf6 {[%clk 0:02:57]} 6. Bd3 {[%clk 0:02:58]}  Bd6 {[%clk 0:02:58]} 7. b3 {[%clk 0:02:54]}  O-O {[%clk 0:02:56]} 8. Bb2 {[%clk 0:02:54]}  Ne4 {[%clk 0:02:53]} 9. O-O {[%clk 0:02:53]}  Nd7 {[%clk 0:02:53]} 10. Ne2 {[%clk 0:02:53]}  Qe7 {[%clk 0:02:50]} 11. Ne5 {[%clk 0:02:48]}  Kh8 {[%clk 0:02:38]} 12. Rc1 {[%clk 0:02:38]}  a5 {[%clk 0:02:16]} 13. Nf4 {[%clk 0:02:36]}  Nxe5 {[%clk 0:02:03]} 14. dxe5 {[%clk 0:02:35]}  Ba3 {[%clk 0:02:02]} 15. Qh5 {[%clk 0:02:30]}  Kg8 {[%clk 0:01:51]} 16. Bxa3 {[%clk 0:02:21]}  Qxa3 {[%clk 0:01:52]} 17. Bxe4 {[%clk 0:02:05]}  fxe4 {[%clk 0:01:44]} 18. Qg4 {[%clk 0:02:00]}  Qe7 {[%clk 0:01:39]} 19. f3 {[%clk 0:01:52]}  Rf5 {[%clk 0:01:12]} 20. fxe4 {[%clk 0:01:51]}  Rxe5 {[%clk 0:01:07]} 21. Nh5 {[%clk 0:01:37]}  Rxe4 {[%clk 0:00:59]} 22. Qg3 {[%clk 0:01:37]}  Kh8 {[%clk 0:00:37]} 23. Rf3 {[%clk 0:01:36]}  Bd7 {[%clk 0:00:36]} 24. Rcf1 {[%clk 0:01:35]}  Rg8 {[%clk 0:00:35]} 25. Rf7 {[%clk 0:01:26]}  Qh4 {[%clk 0:00:30]} 26. Rxd7 {[%clk 0:00:33]}  Qxh5 {[%clk 0:00:27]} 27. Rxg7 {[%clk 0:00:33]}  Rg4 {[%clk 0:00:20]} 28. Rxg8+ {[%clk 0:00:33]}  Rxg8 {[%clk 0:00:11]} 29. Qf2 {[%clk 0:00:30]}  Qg6 {[%clk 0:00:10]} 30. cxd5 {[%clk 0:00:26]}  exd5 {[%clk 0:00:07]} 31. g3 {[%clk 0:00:26]}  h5 {[%clk 0:00:07]} 32. Qf4 {[%clk 0:00:24]}  Qe4 {[%clk 0:00:05]} 33. Qh6+ {[%clk 0:00:23]}  Qh7 {[%clk 0:00:05]} 34. Qf6+ {[%clk 0:00:24]}  Qg7 {[%clk 0:00:05]} 35. Qh4 {[%clk 0:00:22]}  Qe5 {[%clk 0:00:03]} 36. Rf3 {[%clk 0:00:17]}  Qa1+ {[%clk 0:00:03]} 37. Kg2 {[%clk 0:00:17]}  Qb2+ {[%clk 0:00:02]} 38. Kh3 {[%clk 0:00:17]}  Qe5 {[%clk 0:00:02]} 39. Qf6+ {[%clk 0:00:17]}  Qxf6 {[%clk 0:00:02]} 40. Rxf6 {[%clk 0:00:18]}  Kh7 {[%clk 0:00:01]} 41. Rf7+ {[%clk 0:00:18]}  Rg7 {[%clk 0:00:02]} 42. Rxb7 {[%clk 0:00:19]}  Rxb7 {[%clk 0:00:01]} 43. Kh4 {[%clk 0:00:19]}  Re7 {[%clk 0:00:01]} 44. Kxh5 {[%clk 0:00:20]}  Rf7 {[%clk 0:00:02]} 45. g4 {[%clk 0:00:21]}  Rf2 {[%clk 0:00:02]} 46. g5 {[%clk 0:00:22]}  Rxh2+ {[%clk 0:00:03]} 47. Kg4 {[%clk 0:00:22]}  Rxa2 {[%clk 0:00:04]} 48. Kf5 {[%clk 0:00:23]}  Rf2+ {[%clk 0:00:04]} 49. Ke5 {[%clk 0:00:24]}  Rg2 {[%clk 0:00:03]} 50. Kd6 {[%clk 0:00:25]}  Rxg5 {[%clk 0:00:03]} 51. Kxc6 {[%clk 0:00:26]}  d4 {[%clk 0:00:03]} 52. exd4 {[%clk 0:00:26]}  Rg3 {[%clk 0:00:03]} 53. d5 {[%clk 0:00:25]}  Rxb3 {[%clk 0:00:03]} 54. d6 {[%clk 0:00:26]}  a4 {[%clk 0:00:03]} 55. d7 {[%clk 0:00:26]}  Rd3 {[%clk 0:00:03]} 56. Kb5 {[%clk 0:00:27]}  a3 {[%clk 0:00:03]} 57. Kc4 {[%clk 0:00:27]}  Rxd7 {[%clk 0:00:02]} 58. Kb3 {[%clk 0:00:28]}  Ra7 {[%clk 0:00:03]} 59. Ka2 {[%clk 0:00:29]}  Kg6 {[%clk 0:00:03]} 60. Kb3 {[%clk 0:00:30]}  Kf5 {[%clk 0:00:04]} 61. Ka2 {[%clk 0:00:31]}  Ke5 {[%clk 0:00:05]} 62. Ka1 {[%clk 0:00:32]}  Ke6 {[%clk 0:00:06]} 63. Kb1 {[%clk 0:00:33]}  Kd6 {[%clk 0:00:06]} 64. Ka2 {[%clk 0:00:34]}  Kc5 {[%clk 0:00:07]} 65. Ka1 {[%clk 0:00:35]}  Kc4 {[%clk 0:00:08]} 66. Kb1 {[%clk 0:00:35]}  Kb3 {[%clk 0:00:08]} 67. Kc1 {[%clk 0:00:36]}  Rc7+ {[%clk 0:00:08]} 68. Kd2 {[%clk 0:00:37]}  Rd7+ {[%clk 0:00:08]} 0-1


[Site "https://www.chess.com"]

[Event "Titled Tuesday Blitz April 4 Early 2023"]
[White "Lwanga, Aguda"]
[Black "Itkis, Boris"]
[WhiteFideId "10801529"]
[BlackFideId "1209167"]
[WhiteElo "1475"]
[BlackElo "2216"]
[Result "1-0"]
[Round "08"]
[TimeControl "180+2"]
[Date "2023.04.04"]
[WhiteClock "0:02:04"]
[BlackClock "0:01:56"]

1. e4 {[%clk 0:03:00]}  e6 {[%clk 0:02:57]} 2. d4 {[%clk 0:02:59]}  d5 {[%clk 0:02:57]} 3. Nd2 {[%clk 0:02:59]}  c5 {[%clk 0:02:53]} 4. exd5 {[%clk 0:02:55]}  Qxd5 {[%clk 0:02:51]} 5. Ngf3 {[%clk 0:02:51]}  cxd4 {[%clk 0:02:52]} 6. Bc4 {[%clk 0:02:51]}  Qd6 {[%clk 0:02:52]} 7. Nb3 {[%clk 0:02:46]}  Nf6 {[%clk 0:02:36]} 8. Nbxd4 {[%clk 0:02:43]}  a6 {[%clk 0:02:34]} 9. O-O {[%clk 0:02:40]}  Be7 {[%clk 0:02:26]} 10. Re1 {[%clk 0:02:40]}  O-O {[%clk 0:02:25]} 11. c3 {[%clk 0:02:39]}  b5 {[%clk 0:02:25]} 12. Bb3 {[%clk 0:02:38]}  Bb7 {[%clk 0:02:26]} 13. Qe2 {[%clk 0:02:38]}  Nc6 {[%clk 0:02:16]} 14. Nxc6 {[%clk 0:02:30]}  Qxc6 {[%clk 0:02:17]} 15. Bg5 {[%clk 0:02:25]}  Rfd8 {[%clk 0:02:14]} 16. Rad1 {[%clk 0:02:22]}  h6 {[%clk 0:02:03]} 17. Bh4 {[%clk 0:02:17]}  Rxd1 {[%clk 0:01:58]} 18. Rxd1 {[%clk 0:02:16]}  Rd8 {[%clk 0:01:59]} 19. Bxf6 {[%clk 0:02:06]}  Bxf6 {[%clk 0:01:57]} 20. Ne1 {[%clk 0:02:06]}  Qxg2+ {[%clk 0:01:56]} 21. Nxg2 {[%clk 0:02:04]} 1-0


[Site "https://www.chess.com"]

[Event "Titled Tuesday Blitz April 4 Early 2023"]
[White "Odeh, Kenneth"]
[Black "Akhayan, Ruben"]
[WhiteFideId "8500142"]
[BlackFideId "204439"]
[WhiteElo "2031"]
[BlackElo "2155"]
[Result "1/2-1/2"]
[Round "08"]
[TimeControl "180+2"]
[Date "2023.04.04"]
[WhiteClock "0:00:09"]
[BlackClock "0:00:24"]

1. e4 {[%clk 0:02:00]}  c6 {[%clk 0:02:57]} 2. d4 {[%clk 0:02:00]}  d5 {[%clk 0:02:57]} 3. e5 {[%clk 0:02:00]}  g6 {[%clk 0:02:56]} 4. Bd3 {[%clk 0:02:00]}  Bg7 {[%clk 0:02:56]} 5. f4 {[%clk 0:02:00]}  h5 {[%clk 0:02:55]} 6. Nf3 {[%clk 0:01:59]}  Nh6 {[%clk 0:02:55]} 7. Be3 {[%clk 0:01:58]}  Bf5 {[%clk 0:02:56]} 8. Nc3 {[%clk 0:01:56]}  Nd7 {[%clk 0:02:52]} 9. O-O {[%clk 0:01:52]}  Ng4 {[%clk 0:02:51]} 10. Qd2 {[%clk 0:01:50]}  O-O {[%clk 0:02:50]} 11. h3 {[%clk 0:01:50]}  Nxe3 {[%clk 0:02:49]} 12. Qxe3 {[%clk 0:01:49]}  Bxd3 {[%clk 0:02:47]} 13. cxd3 {[%clk 0:01:48]}  e6 {[%clk 0:02:48]} 14. g4 {[%clk 0:01:47]}  hxg4 {[%clk 0:02:46]} 15. hxg4 {[%clk 0:01:47]}  c5 {[%clk 0:02:47]} 16. Kg2 {[%clk 0:01:41]}  cxd4 {[%clk 0:02:46]} 17. Nxd4 {[%clk 0:01:41]}  Re8 {[%clk 0:02:39]} 18. Rf3 {[%clk 0:01:40]}  Kf8 {[%clk 0:02:36]} 19. Rh1 {[%clk 0:01:38]}  Ke7 {[%clk 0:02:35]} 20. f5 {[%clk 0:01:38]}  Nxe5 {[%clk 0:02:32]} 21. f6+ {[%clk 0:01:15]}  Bxf6 {[%clk 0:02:30]} 22. Rxf6 {[%clk 0:01:15]}  Nxg4 {[%clk 0:02:10]} 23. Qf4 {[%clk 0:01:10]}  Nxf6 {[%clk 0:02:07]} 24. Rf1 {[%clk 0:01:00]}  Kd7 {[%clk 0:01:57]} 25. Ncb5 {[%clk 0:00:52]}  e5 {[%clk 0:01:41]} 26. Qg5 {[%clk 0:00:36]}  exd4 {[%clk 0:01:33]} 27. Rxf6 {[%clk 0:00:35]}  Re2+ {[%clk 0:01:33]} 28. Kf1 {[%clk 0:00:29]}  Re7 {[%clk 0:01:20]} 29. Rd6+ {[%clk 0:00:22]}  Ke8 {[%clk 0:01:08]} 30. Rxd8+ {[%clk 0:00:20]}  Rxd8 {[%clk 0:01:08]} 31. Qh6 {[%clk 0:00:16]}  Kd7 {[%clk 0:01:03]} 32. Qh3+ {[%clk 0:00:16]}  Kc6 {[%clk 0:00:56]} 33. Nxd4+ {[%clk 0:00:15]}  Kc5 {[%clk 0:00:56]} 34. Nb3+ {[%clk 0:00:15]}  Kc6 {[%clk 0:00:55]} 35. d4 {[%clk 0:00:14]}  Rde8 {[%clk 0:00:54]} 36. Qc3+ {[%clk 0:00:13]}  Kd7 {[%clk 0:00:54]} 37. Nc5+ {[%clk 0:00:13]}  Kc8 {[%clk 0:00:47]} 38. Qa5 {[%clk 0:00:12]}  Re1+ {[%clk 0:00:45]} 39. Kf2 {[%clk 0:00:12]}  R1e2+ {[%clk 0:00:44]} 40. Kf1 {[%clk 0:00:12]}  Kb8 {[%clk 0:00:41]} 41. Nd7+ {[%clk 0:00:11]}  Kc8 {[%clk 0:00:39]} 42. Nc5 {[%clk 0:00:11]}  a6 {[%clk 0:00:28]} 43. Qb6 {[%clk 0:00:10]}  R8e7 {[%clk 0:00:28]} 44. Qa7 {[%clk 0:00:09]}  Re1+ {[%clk 0:00:24]} 45. Kf2 {[%clk 0:00:08]}  R1e2+ {[%clk 0:00:24]} 46. Kf1 {[%clk 0:00:08]}  Re1+ {[%clk 0:00:24]} 47. Kf2 {[%clk 0:00:08]}  R1e2+ {[%clk 0:00:24]} 48. Kf1 {[%clk 0:00:09]} 1/2-1/2


[Site "https://www.chess.com"]

[Event "Titled Tuesday Blitz April 4 Early 2023"]
[White "Firouzja, Alireza"]
[Black "Andreikin, Dmitry"]
[WhiteFideId "12573981"]
[BlackFideId "4158814"]
[WhiteElo "2904"]
[BlackElo "2736"]
[Result "0-1"]
[Round "09"]
[TimeControl "180+2"]
[Date "2023.04.04"]
[WhiteClock "0:00:03"]
[BlackClock "0:00:09"]

1. d4 {[%clk 0:02:59]}  Nf6 {[%clk 0:02:54]} 2. c4 {[%clk 0:02:59]}  e6 {[%clk 0:02:55]} 3. g3 {[%clk 0:03:00]}  Bb4+ {[%clk 0:02:48]} 4. Nc3 {[%clk 0:02:59]}  d5 {[%clk 0:02:46]} 5. Bg2 {[%clk 0:02:59]}  O-O {[%clk 0:02:46]} 6. Nf3 {[%clk 0:02:59]}  dxc4 {[%clk 0:02:46]} 7. O-O {[%clk 0:03:00]}  Nc6 {[%clk 0:02:47]} 8. e3 {[%clk 0:02:59]}  Nd5 {[%clk 0:02:44]} 9. Qc2 {[%clk 0:02:55]}  Be7 {[%clk 0:02:42]} 10. Rd1 {[%clk 0:02:51]}  a6 {[%clk 0:02:37]} 11. e4 {[%clk 0:02:42]}  Ndb4 {[%clk 0:02:28]} 12. Qe2 {[%clk 0:02:42]}  Nd3 {[%clk 0:02:26]} 13. Be3 {[%clk 0:02:42]}  b5 {[%clk 0:02:22]} 14. b3 {[%clk 0:02:37]}  e5 {[%clk 0:02:12]} 15. bxc4 {[%clk 0:02:29]}  bxc4 {[%clk 0:02:06]} 16. Nxe5 {[%clk 0:01:24]}  Nxd4 {[%clk 0:02:00]} 17. Qh5 {[%clk 0:00:38]}  Be6 {[%clk 0:01:32]} 18. Nxd3 {[%clk 0:00:33]}  cxd3 {[%clk 0:01:31]} 19. Nd5 {[%clk 0:00:15]}  Nc2 {[%clk 0:00:32]} 20. Nxe7+ {[%clk 0:00:14]}  Qxe7 {[%clk 0:00:32]} 21. Bc5 {[%clk 0:00:15]}  Qd7 {[%clk 0:00:32]} 22. Bxf8 {[%clk 0:00:09]}  Rxf8 {[%clk 0:00:26]} 23. Rac1 {[%clk 0:00:05]}  Bg4 {[%clk 0:00:26]} 24. Qc5 {[%clk 0:00:06]}  Bxd1 {[%clk 0:00:25]} 25. Rxd1 {[%clk 0:00:07]}  Nd4 {[%clk 0:00:12]} 26. Bf1 {[%clk 0:00:07]}  Ne2+ {[%clk 0:00:13]} 27. Kg2 {[%clk 0:00:07]}  Qa4 {[%clk 0:00:12]} 28. Rd2 {[%clk 0:00:02]}  Qxe4+ {[%clk 0:00:13]} 29. f3 {[%clk 0:00:03]}  Qg6 {[%clk 0:00:11]} 30. Qxc7 {[%clk 0:00:02]}  h5 {[%clk 0:00:10]} 31. Qc4 {[%clk 0:00:03]}  Re8 {[%clk 0:00:10]} 32. Qxd3 {[%clk 0:00:03]}  Nf4+ {[%clk 0:00:09]} 0-1


[Site "https://www.chess.com"]